[Event "Titled Tuesday Blitz May 30 Early 2023"]
[White "Mushini Ajay"]
[Black "Shevtchenko, Olesya"]
[WhiteFideId "35066188"]
[BlackFideId "24131890"]
[WhiteElo "2145"]
[BlackElo "2003"]
[Result "1-0"]
[Round "03"]
[TimeControl "180+2"]
[Date "2023.05.30"]
[WhiteClock "0:01:03"]
[BlackClock "0:00:32"]

1. b3 {[%clk 0:03:00]}  e5 {[%clk 0:02:59]} 2. Bb2 {[%clk 0:03:01]}  Nc6 {[%clk 0:03:00]} 3. e3 {[%clk 0:03:01]}  d5 {[%clk 0:03:00]} 4. Nf3 {[%clk 0:03:00]}  e4 {[%clk 0:02:59]} 5. Ne5 {[%clk 0:03:00]}  Nxe5 {[%clk 0:02:57]} 6. Bxe5 {[%clk 0:03:01]}  Nf6 {[%clk 0:02:56]} 7. Be2 {[%clk 0:03:01]}  Bd6 {[%clk 0:02:56]} 8. Bb2 {[%clk 0:03:00]}  h5 {[%clk 0:02:55]} 9. f4 {[%clk 0:03:00]}  exf3 {[%clk 0:02:51]} 10. Bxf3 {[%clk 0:03:00]}  Qe7 {[%clk 0:02:45]} 11. Nc3 {[%clk 0:02:49]}  c6 {[%clk 0:02:44]} 12. Ne2 {[%clk 0:02:45]}  Bg4 {[%clk 0:02:42]} 13. Nd4 {[%clk 0:02:44]}  O-O-O {[%clk 0:02:36]} 14. Bxg4+ {[%clk 0:02:42]}  Nxg4 {[%clk 0:02:36]} 15. Qf3 {[%clk 0:02:35]}  g6 {[%clk 0:02:20]} 16. c4 {[%clk 0:02:31]}  dxc4 {[%clk 0:02:10]} 17. Rc1 {[%clk 0:02:26]}  Ne5 {[%clk 0:02:09]} 18. Qh3+ {[%clk 0:02:22]}  Kb8 {[%clk 0:02:09]} 19. O-O {[%clk 0:02:21]}  Nd3 {[%clk 0:01:59]} 20. Rc2 {[%clk 0:02:20]}  Nxb2 {[%clk 0:01:52]} 21. Rxb2 {[%clk 0:02:19]}  c3 {[%clk 0:01:14]} 22. dxc3 {[%clk 0:02:16]}  f5 {[%clk 0:01:13]} 23. b4 {[%clk 0:02:12]}  h4 {[%clk 0:01:11]} 24. c4 {[%clk 0:01:55]}  Be5 {[%clk 0:01:07]} 25. Rd2 {[%clk 0:01:47]}  Qxb4 {[%clk 0:00:56]} 26. Rfd1 {[%clk 0:01:44]}  Bxd4 {[%clk 0:00:56]} 27. exd4 {[%clk 0:01:42]}  Qxc4 {[%clk 0:00:56]} 28. Qf3 {[%clk 0:01:36]}  h3 {[%clk 0:00:49]} 29. gxh3 {[%clk 0:01:23]}  Rhe8 {[%clk 0:00:44]} 30. Qg3+ {[%clk 0:01:22]}  Ka8 {[%clk 0:00:44]} 31. h4 {[%clk 0:01:16]}  Re4 {[%clk 0:00:41]} 32. h3 {[%clk 0:01:11]}  Rexd4 {[%clk 0:00:38]} 33. Rxd4 {[%clk 0:01:11]}  Rxd4 {[%clk 0:00:38]} 34. Re1 {[%clk 0:01:06]}  Rd5 {[%clk 0:00:32]} 35. Re8+ {[%clk 0:01:03]} 1-0


[Site "https://www.chess.com"]

[Event "Titled Tuesday Blitz May 30 Early 2023"]
[White "Avalos Parra, Joao"]
[Black "Baghdasaryan, Vahe"]
[WhiteFideId "3402541"]
[BlackFideId "13303139"]
[WhiteElo "2173"]
[BlackElo "2216"]
[Result "0-1"]
[Round "03"]
[TimeControl "180+2"]
[Date "2023.05.30"]
[WhiteClock "0:00:02"]
[BlackClock "0:00:15"]

1. d4 {[%clk 0:03:00]}  d5 {[%clk 0:02:57]} 2. c4 {[%clk 0:03:01]}  c6 {[%clk 0:02:56]} 3. Nf3 {[%clk 0:03:01]}  Nf6 {[%clk 0:02:56]} 4. Nc3 {[%clk 0:03:02]}  e6 {[%clk 0:02:55]} 5. Bg5 {[%clk 0:03:02]}  dxc4 {[%clk 0:02:55]} 6. e4 {[%clk 0:03:02]}  b5 {[%clk 0:02:55]} 7. e5 {[%clk 0:03:03]}  h6 {[%clk 0:02:55]} 8. Bh4 {[%clk 0:03:02]}  g5 {[%clk 0:02:55]} 9. Nxg5 {[%clk 0:03:03]}  hxg5 {[%clk 0:02:52]} 10. Bxg5 {[%clk 0:03:03]}  Nbd7 {[%clk 0:02:52]} 11. g3 {[%clk 0:03:01]}  Qa5 {[%clk 0:02:42]} 12. exf6 {[%clk 0:02:50]}  b4 {[%clk 0:02:42]} 13. Ne4 {[%clk 0:02:41]}  Ba6 {[%clk 0:02:42]} 14. Bd2 {[%clk 0:02:35]}  O-O-O {[%clk 0:01:59]} 15. a3 {[%clk 0:02:25]}  Qd5 {[%clk 0:01:41]} 16. Bg2 {[%clk 0:02:26]}  c3 {[%clk 0:01:27]} 17. bxc3 {[%clk 0:02:21]}  bxc3 {[%clk 0:01:23]} 18. Bxc3 {[%clk 0:02:18]}  Nxf6 {[%clk 0:00:43]} 19. Qa4 {[%clk 0:01:40]}  Bb5 {[%clk 0:00:37]} 20. Qxa7 {[%clk 0:01:40]}  Nxe4 {[%clk 0:00:31]} 21. Ba5 {[%clk 0:01:39]}  Bd6 {[%clk 0:00:31]} 22. a4 {[%clk 0:01:13]}  Bb8 {[%clk 0:00:26]} 23. Qxf7 {[%clk 0:01:09]}  Rhf8 {[%clk 0:00:17]} 24. Qh7 {[%clk 0:01:04]}  Qxd4 {[%clk 0:00:16]} 25. Rc1 {[%clk 0:00:02]}  Qxf2# {[%clk 0:00:15]} 0-1


[Site "https://www.chess.com"]

[Event "Titled Tuesday Blitz May 30 Early 2023"]
[White "Sousa, Andre Ventura"]
[Black "Rose, Felix"]
[WhiteFideId "1917617"]
[BlackFideId "5105722"]
[WhiteElo "2333"]
[BlackElo "2039"]
[Result "1-0"]
[Round "03"]
[TimeControl "180+2"]
[Date "2023.05.30"]
[WhiteClock "0:00:53"]
[BlackClock "0:00:01"]

1. e4 {[%clk 0:03:00]}  c5 {[%clk 0:02:58]} 2. Nf3 {[%clk 0:03:01]}  e6 {[%clk 0:02:58]} 3. Nc3 {[%clk 0:03:00]}  a6 {[%clk 0:02:58]} 4. g3 {[%clk 0:02:59]}  b5 {[%clk 0:02:58]} 5. Bg2 {[%clk 0:02:59]}  Bb7 {[%clk 0:02:59]} 6. d3 {[%clk 0:03:00]}  Nc6 {[%clk 0:02:59]} 7. O-O {[%clk 0:02:59]}  Rc8 {[%clk 0:03:00]} 8. Ne1 {[%clk 0:02:55]}  h5 {[%clk 0:02:47]} 9. f4 {[%clk 0:02:43]}  h4 {[%clk 0:02:43]} 10. g4 {[%clk 0:02:43]}  h3 {[%clk 0:02:43]} 11. Bh1 {[%clk 0:02:43]}  Qh4 {[%clk 0:02:38]} 12. g5 {[%clk 0:02:05]}  Nd4 {[%clk 0:02:23]} 13. Be3 {[%clk 0:02:02]}  b4 {[%clk 0:02:10]} 14. Ne2 {[%clk 0:02:00]}  e5 {[%clk 0:01:42]} 15. Nxd4 {[%clk 0:01:55]}  cxd4 {[%clk 0:01:34]} 16. Bd2 {[%clk 0:01:51]}  Be7 {[%clk 0:01:20]} 17. Qf3 {[%clk 0:01:43]}  f5 {[%clk 0:01:03]} 18. fxe5 {[%clk 0:01:34]}  Bxg5 {[%clk 0:00:49]} 19. Qxf5 {[%clk 0:01:34]}  Be7 {[%clk 0:00:20]} 20. Nf3 {[%clk 0:01:29]}  Qh5 {[%clk 0:00:15]} 21. Nxd4 {[%clk 0:01:09]}  Bc5 {[%clk 0:00:11]} 22. Be3 {[%clk 0:01:10]}  Qxf5 {[%clk 0:00:07]} 23. Nxf5 {[%clk 0:01:09]}  g6 {[%clk 0:00:02]} 24. Bxc5 {[%clk 0:00:56]}  Rxc5 {[%clk 0:00:02]} 25. Nd6+ {[%clk 0:00:56]}  Ke7 {[%clk 0:00:02]} 26. Nxb7 {[%clk 0:00:53]}  Rc3 {[%clk 0:00:01]} 27. bxc3 {[%clk 0:00:53]} 1-0


[Site "https://www.chess.com"]

[Event "Titled Tuesday Blitz May 30 Early 2023"]
[White "Budrewicz, Krzysztof"]
[Black "Ardila, Oscar Humberto"]
[WhiteFideId "1127950"]
[BlackFideId "4404742"]
[WhiteElo "2230"]
[BlackElo "1918"]
[Result "1-0"]
[Round "03"]
[TimeControl "180+2"]
[Date "2023.05.30"]
[WhiteClock "0:00:17"]
[BlackClock "0:00:03"]

1. d4 {[%clk 0:03:00]}  Nf6 {[%clk 0:02:59]} 2. c4 {[%clk 0:02:57]}  g6 {[%clk 0:03:00]} 3. Nc3 {[%clk 0:02:57]}  Bg7 {[%clk 0:03:00]} 4. e4 {[%clk 0:02:57]}  d6 {[%clk 0:03:01]} 5. Be2 {[%clk 0:02:56]}  O-O {[%clk 0:03:01]} 6. Bg5 {[%clk 0:02:55]}  h6 {[%clk 0:03:00]} 7. Be3 {[%clk 0:02:55]}  Nbd7 {[%clk 0:03:01]} 8. Qd2 {[%clk 0:02:55]}  Kh7 {[%clk 0:03:01]} 9. h4 {[%clk 0:02:55]}  Ng8 {[%clk 0:02:59]} 10. h5 {[%clk 0:02:55]}  g5 {[%clk 0:02:59]} 11. g4 {[%clk 0:02:55]}  c5 {[%clk 0:02:56]} 12. d5 {[%clk 0:02:55]}  Ne5 {[%clk 0:02:55]} 13. f3 {[%clk 0:02:52]}  Bd7 {[%clk 0:02:48]} 14. Nh3 {[%clk 0:02:46]}  a6 {[%clk 0:02:44]} 15. a4 {[%clk 0:02:41]}  Rb8 {[%clk 0:02:43]} 16. Nf2 {[%clk 0:02:40]}  Qc8 {[%clk 0:02:34]} 17. a5 {[%clk 0:02:36]}  Nf6 {[%clk 0:02:24]} 18. O-O {[%clk 0:02:28]}  Qc7 {[%clk 0:02:16]} 19. Ra3 {[%clk 0:02:27]}  Rbd8 {[%clk 0:02:15]} 20. Kg2 {[%clk 0:02:25]}  e6 {[%clk 0:02:15]} 21. Rfa1 {[%clk 0:02:22]}  exd5 {[%clk 0:02:14]} 22. cxd5 {[%clk 0:02:21]}  Rc8 {[%clk 0:01:41]} 23. Rb3 {[%clk 0:02:19]}  Rb8 {[%clk 0:01:35]} 24. Rb6 {[%clk 0:02:19]}  Bc8 {[%clk 0:01:34]} 25. Nh1 {[%clk 0:02:14]}  Nfd7 {[%clk 0:01:34]} 26. Rb3 {[%clk 0:02:14]}  c4 {[%clk 0:01:34]} 27. Rb4 {[%clk 0:02:13]}  Nc5 {[%clk 0:01:28]} 28. Bxc5 {[%clk 0:01:58]}  dxc5 {[%clk 0:01:11]} 29. Rba4 {[%clk 0:01:48]}  Bd7 {[%clk 0:01:12]} 30. R4a3 {[%clk 0:01:47]}  b6 {[%clk 0:01:06]} 31. axb6 {[%clk 0:01:47]}  Rxb6 {[%clk 0:01:06]} 32. Rxa6 {[%clk 0:01:45]}  Rfb8 {[%clk 0:01:06]} 33. Rxb6 {[%clk 0:01:45]}  Rxb6 {[%clk 0:01:07]} 34. Ng3 {[%clk 0:01:44]}  Qb8 {[%clk 0:01:06]} 35. Ra2 {[%clk 0:01:44]}  Nd3 {[%clk 0:01:03]} 36. Bxd3 {[%clk 0:01:39]}  cxd3 {[%clk 0:01:03]} 37. Qxd3 {[%clk 0:01:31]}  Rxb2+ {[%clk 0:01:02]} 38. Rxb2 {[%clk 0:01:31]}  Qxb2+ {[%clk 0:01:02]} 39. Nge2 {[%clk 0:01:32]}  Be5 {[%clk 0:01:00]} 40. Nd1 {[%clk 0:01:27]}  Qb4 {[%clk 0:00:51]} 41. Nec3 {[%clk 0:01:18]}  c4 {[%clk 0:00:49]} 42. Qc2 {[%clk 0:01:16]}  Qc5 {[%clk 0:00:40]} 43. Ne2 {[%clk 0:01:15]}  Qb4 {[%clk 0:00:35]} 44. Ne3 {[%clk 0:01:10]}  c3 {[%clk 0:00:32]} 45. Nd1 {[%clk 0:01:06]}  Ba4 {[%clk 0:00:31]} 46. Qc1 {[%clk 0:00:55]}  c2 {[%clk 0:00:28]} 47. Ne3 {[%clk 0:00:53]}  Qc5 {[%clk 0:00:17]} 48. Nf5 {[%clk 0:00:38]}  Bb5 {[%clk 0:00:14]} 49. Nfg3 {[%clk 0:00:32]}  Qc4 {[%clk 0:00:13]} 50. Qe3 {[%clk 0:00:27]}  Bf4 {[%clk 0:00:08]} 51. Qa3 {[%clk 0:00:20]}  c1=Q {[%clk 0:00:06]} 52. Nxc1 {[%clk 0:00:20]}  Bxc1 {[%clk 0:00:06]} 53. Qe7 {[%clk 0:00:17]}  Qc2+ {[%clk 0:00:04]} 54. Kh3 {[%clk 0:00:15]}  Bf4 {[%clk 0:00:03]} 55. Qxf7+ {[%clk 0:00:15]}  Kh8 {[%clk 0:00:04]} 56. Qf6+ {[%clk 0:00:15]}  Kh7 {[%clk 0:00:04]} 57. Qg6+ {[%clk 0:00:15]}  Kh8 {[%clk 0:00:05]} 58. Qxh6+ {[%clk 0:00:16]}  Kg8 {[%clk 0:00:05]} 59. Qg6+ {[%clk 0:00:16]}  Kf8 {[%clk 0:00:06]} 60. Qf6+ {[%clk 0:00:16]}  Ke8 {[%clk 0:00:06]} 61. Qe6+ {[%clk 0:00:16]}  Kd8 {[%clk 0:00:07]} 62. Qf6+ {[%clk 0:00:16]}  Kc8 {[%clk 0:00:06]} 63. Qf8+ {[%clk 0:00:15]}  Kb7 {[%clk 0:00:05]} 64. Qe7+ {[%clk 0:00:15]}  Kb6 {[%clk 0:00:05]} 65. Qd8+ {[%clk 0:00:13]}  Kc5 {[%clk 0:00:05]} 66. Qc8+ {[%clk 0:00:12]}  Kb4 {[%clk 0:00:02]} 67. Qxc2 {[%clk 0:00:12]}  Ka5 {[%clk 0:00:02]} 68. Qa2+ {[%clk 0:00:12]}  Kb6 {[%clk 0:00:03]} 69. Qb3 {[%clk 0:00:13]}  Bd6 {[%clk 0:00:03]} 70. Qxb5+ {[%clk 0:00:13]}  Kxb5 {[%clk 0:00:03]} 71. h6 {[%clk 0:00:14]}  Be5 {[%clk 0:00:03]} 72. Nf5 {[%clk 0:00:14]}  Kc5 {[%clk 0:00:03]} 73. Kg2 {[%clk 0:00:14]}  Kb5 {[%clk 0:00:04]} 74. Kf2 {[%clk 0:00:14]}  Kc4 {[%clk 0:00:04]} 75. Ke3 {[%clk 0:00:15]}  Kc3 {[%clk 0:00:05]} 76. Ke2 {[%clk 0:00:16]}  Kc2 {[%clk 0:00:05]} 77. d6 {[%clk 0:00:16]}  Bxd6 {[%clk 0:00:03]} 78. Nxd6 {[%clk 0:00:17]} 1-0


[Site "https://www.chess.com"]

[Event "Titled Tuesday Blitz May 30 Early 2023"]
[White "Sovetbekova, Nurai"]
[Black "ArrestingPieces"]
[WhiteFideId "13801910"]
[WhiteElo "1857"]
[BlackElo "2555"]
[Result "1-0"]
[Round "03"]
[TimeControl "180+2"]
[Date "2023.05.30"]
[WhiteClock "0:01:15"]
[BlackClock "0:01:12"]

1. d4 {[%clk 0:03:00]}  d5 {[%clk 0:02:59]} 2. c4 {[%clk 0:03:01]}  e6 {[%clk 0:03:00]} 3. Nc3 {[%clk 0:03:01]}  Be7 {[%clk 0:03:00]} 4. Nf3 {[%clk 0:02:59]}  Nf6 {[%clk 0:02:59]} 5. Bf4 {[%clk 0:02:58]}  O-O {[%clk 0:02:59]} 6. e3 {[%clk 0:02:58]}  b6 {[%clk 0:02:59]} 7. Be2 {[%clk 0:02:55]}  Bb7 {[%clk 0:02:59]} 8. O-O {[%clk 0:02:54]}  Nbd7 {[%clk 0:02:57]} 9. cxd5 {[%clk 0:02:54]}  Nxd5 {[%clk 0:02:56]} 10. Nxd5 {[%clk 0:02:53]}  Bxd5 {[%clk 0:02:57]} 11. Rc1 {[%clk 0:02:53]}  c5 {[%clk 0:02:56]} 12. dxc5 {[%clk 0:02:41]}  Nxc5 {[%clk 0:02:52]} 13. Nd4 {[%clk 0:02:29]}  Bf6 {[%clk 0:02:44]} 14. Bg3 {[%clk 0:02:11]}  Bxa2 {[%clk 0:02:15]} 15. b4 {[%clk 0:02:09]}  Nb3 {[%clk 0:01:53]} 16. Nxb3 {[%clk 0:02:02]}  Qxd1 {[%clk 0:01:53]} 17. Bxd1 {[%clk 0:02:02]}  Rac8 {[%clk 0:01:49]} 18. Rxc8 {[%clk 0:01:59]}  Rxc8 {[%clk 0:01:50]} 19. Nd4 {[%clk 0:01:58]}  Be7 {[%clk 0:01:45]} 20. b5 {[%clk 0:01:51]}  Bd5 {[%clk 0:01:20]} 21. Bb3 {[%clk 0:01:48]}  Bf6 {[%clk 0:01:15]} 22. Bxd5 {[%clk 0:01:44]}  exd5 {[%clk 0:01:16]} 23. Nc6 {[%clk 0:01:15]}  Bc3 {[%clk 0:01:12]} 1-0


[Site "https://www.chess.com"]

[Event "Titled Tuesday Blitz May 30 Early 2023"]
[White "Tsyhanchuk, Stanislav"]
[Black "Garv Gaur"]
[WhiteFideId "13505130"]
[BlackFideId "45030839"]
[WhiteElo "2173"]
[BlackElo "2068"]
[Result "0-1"]
[Round "03"]
[TimeControl "180+2"]
[Date "2023.05.30"]
[WhiteClock "0:00:00"]
[BlackClock "0:00:03"]

1. c4 {[%clk 0:03:00]}  Nf6 {[%clk 0:02:52]} 2. Nc3 {[%clk 0:03:01]}  c5 {[%clk 0:02:49]} 3. e4 {[%clk 0:02:58]}  Nc6 {[%clk 0:02:49]} 4. Nge2 {[%clk 0:02:54]}  d6 {[%clk 0:02:47]} 5. d4 {[%clk 0:02:53]}  cxd4 {[%clk 0:02:47]} 6. Nxd4 {[%clk 0:02:54]}  g6 {[%clk 0:02:47]} 7. Be2 {[%clk 0:02:50]}  Bg7 {[%clk 0:02:46]} 8. Be3 {[%clk 0:02:50]}  O-O {[%clk 0:02:35]} 9. O-O {[%clk 0:02:50]}  Bd7 {[%clk 0:02:35]} 10. Rc1 {[%clk 0:02:48]}  Rc8 {[%clk 0:02:33]} 11. b3 {[%clk 0:02:46]}  Qc7 {[%clk 0:02:28]} 12. f4 {[%clk 0:02:43]}  Rfd8 {[%clk 0:02:17]} 13. g4 {[%clk 0:02:26]}  Nxd4 {[%clk 0:02:15]} 14. Bxd4 {[%clk 0:02:25]}  Bc6 {[%clk 0:01:27]} 15. Qc2 {[%clk 0:02:03]}  e5 {[%clk 0:01:25]} 16. fxe5 {[%clk 0:02:00]}  dxe5 {[%clk 0:01:26]} 17. Be3 {[%clk 0:01:58]}  Rd4 {[%clk 0:01:08]} 18. Bf3 {[%clk 0:01:36]}  Rdd8 {[%clk 0:00:56]} 19. Qg2 {[%clk 0:01:27]}  Qe7 {[%clk 0:00:50]} 20. Nd5 {[%clk 0:01:25]}  Bxd5 {[%clk 0:00:44]} 21. exd5 {[%clk 0:01:19]}  e4 {[%clk 0:00:40]} 22. Bd1 {[%clk 0:01:15]}  Nd7 {[%clk 0:00:40]} 23. Bc2 {[%clk 0:01:14]}  Re8 {[%clk 0:00:36]} 24. Rce1 {[%clk 0:00:58]}  b5 {[%clk 0:00:31]} 25. Qe2 {[%clk 0:00:47]}  bxc4 {[%clk 0:00:30]} 26. bxc4 {[%clk 0:00:47]}  Ne5 {[%clk 0:00:30]} 27. Ba4 {[%clk 0:00:41]}  Red8 {[%clk 0:00:26]} 28. Bb3 {[%clk 0:00:41]}  Nd3 {[%clk 0:00:26]} 29. Rd1 {[%clk 0:00:38]}  Qd7 {[%clk 0:00:23]} 30. Rxd3 {[%clk 0:00:29]}  exd3 {[%clk 0:00:23]} 31. Qf3 {[%clk 0:00:28]}  a5 {[%clk 0:00:22]} 32. c5 {[%clk 0:00:25]}  Rf8 {[%clk 0:00:15]} 33. c6 {[%clk 0:00:19]}  Qd6 {[%clk 0:00:14]} 34. Qf2 {[%clk 0:00:19]}  Qb4 {[%clk 0:00:11]} 35. Bc5 {[%clk 0:00:17]}  Qxg4+ {[%clk 0:00:10]} 36. Kh1 {[%clk 0:00:17]}  Qe4+ {[%clk 0:00:10]} 37. Kg1 {[%clk 0:00:11]}  Bh6 {[%clk 0:00:10]} 38. Re1 {[%clk 0:00:09]}  Qg4+ {[%clk 0:00:10]} 39. Qg3 {[%clk 0:00:07]}  Qxg3+ {[%clk 0:00:09]} 40. hxg3 {[%clk 0:00:08]}  Rfe8 {[%clk 0:00:07]} 41. Rd1 {[%clk 0:00:08]}  d2 {[%clk 0:00:07]} 42. Ba4 {[%clk 0:00:07]}  Re4 {[%clk 0:00:04]} 43. Bb5 {[%clk 0:00:04]}  Re1+ {[%clk 0:00:04]} 44. Kf2 {[%clk 0:00:01]}  Rxd1 {[%clk 0:00:04]} 45. Be2 {[%clk 0:00:00]}  Re1 {[%clk 0:00:03]} 0-1


[Site "https://www.chess.com"]

[Event "Titled Tuesday Blitz May 30 Early 2023"]
[White "Gheorghiu, Calin"]
[Black "Zaksaite, Salomeja"]
[WhiteFideId "1200305"]
[BlackFideId "12801496"]
[WhiteElo "2223"]
[BlackElo "2059"]
[Result "1-0"]
[Round "03"]
[TimeControl "180+2"]
[Date "2023.05.30"]
[WhiteClock "0:00:16"]
[BlackClock "0:00:01"]

1. d4 {[%clk 0:02:59]}  Nf6 {[%clk 0:02:59]} 2. c4 {[%clk 0:02:57]}  g6 {[%clk 0:03:00]} 3. Nc3 {[%clk 0:02:56]}  Bg7 {[%clk 0:02:59]} 4. e4 {[%clk 0:02:55]}  d6 {[%clk 0:02:59]} 5. f3 {[%clk 0:02:55]}  O-O {[%clk 0:02:59]} 6. Be3 {[%clk 0:02:56]}  c5 {[%clk 0:02:59]} 7. Nge2 {[%clk 0:02:56]}  Qa5 {[%clk 0:02:53]} 8. d5 {[%clk 0:02:49]}  e6 {[%clk 0:02:53]} 9. Qd2 {[%clk 0:02:46]}  exd5 {[%clk 0:02:52]} 10. cxd5 {[%clk 0:02:43]}  b5 {[%clk 0:02:50]} 11. h4 {[%clk 0:02:38]}  b4 {[%clk 0:02:49]} 12. Nd1 {[%clk 0:02:36]}  Ba6 {[%clk 0:02:38]} 13. g4 {[%clk 0:02:32]}  Nbd7 {[%clk 0:02:29]} 14. Ng3 {[%clk 0:02:06]}  Ne5 {[%clk 0:02:26]} 15. Be2 {[%clk 0:01:57]}  Bxe2 {[%clk 0:01:59]} 16. Kxe2 {[%clk 0:01:51]}  Nc4 {[%clk 0:01:20]} 17. Qc1 {[%clk 0:01:46]}  Nxe3 {[%clk 0:01:20]} 18. Nxe3 {[%clk 0:01:46]}  Rfe8 {[%clk 0:01:15]} 19. h5 {[%clk 0:01:41]}  c4 {[%clk 0:00:55]} 20. Nxc4 {[%clk 0:01:32]}  Qxd5 {[%clk 0:00:49]} 21. Rd1 {[%clk 0:01:31]}  Qb5 {[%clk 0:00:38]} 22. Kf2 {[%clk 0:01:27]}  Rac8 {[%clk 0:00:37]} 23. Nxd6 {[%clk 0:01:09]}  Qb6+ {[%clk 0:00:18]} 24. Qe3 {[%clk 0:01:07]}  Rc2+ {[%clk 0:00:18]} 25. Ne2 {[%clk 0:01:07]}  Qxe3+ {[%clk 0:00:06]} 26. Kxe3 {[%clk 0:01:07]}  Rd8 {[%clk 0:00:05]} 27. hxg6 {[%clk 0:00:45]}  hxg6 {[%clk 0:00:04]} 28. e5 {[%clk 0:00:34]}  Nd7 {[%clk 0:00:03]} 29. f4 {[%clk 0:00:34]}  Rb8 {[%clk 0:00:03]} 30. Rac1 {[%clk 0:00:32]}  Rxb2 {[%clk 0:00:03]} 31. Rc7 {[%clk 0:00:32]}  Nb6 {[%clk 0:00:03]} 32. Nxf7 {[%clk 0:00:28]}  Rxa2 {[%clk 0:00:02]} 33. Ng5 {[%clk 0:00:22]}  b3 {[%clk 0:00:02]} 34. Nc3 {[%clk 0:00:20]}  Rc2 {[%clk 0:00:01]} 35. Ne6 {[%clk 0:00:16]}  b2 {[%clk 0:00:01]} 36. Rxg7+ {[%clk 0:00:15]}  Kh8 {[%clk 0:00:01]} 37. Rh1+ {[%clk 0:00:15]}  Rh2 {[%clk 0:00:01]} 38. Rxh2# {[%clk 0:00:16]} 1-0


[Site "https://www.chess.com"]

[Event "Titled Tuesday Blitz May 30 Early 2023"]
[White "Belov, Alexei"]
[Black "Dylag, Emilia"]
[WhiteFideId "4128206"]
[BlackFideId "21805172"]
[WhiteElo "2544"]
[BlackElo "1878"]
[Result "1-0"]
[Round "03"]
[TimeControl "180+2"]
[Date "2023.05.30"]
[WhiteClock "0:01:33"]
[BlackClock "0:01:40"]

1. e4 {[%clk 0:03:00]}  e5 {[%clk 0:02:59]} 2. Nf3 {[%clk 0:03:00]}  Nc6 {[%clk 0:03:00]} 3. Bb5 {[%clk 0:03:01]}  a6 {[%clk 0:02:58]} 4. Ba4 {[%clk 0:03:00]}  f6 {[%clk 0:02:54]} 5. O-O {[%clk 0:02:56]}  b5 {[%clk 0:02:52]} 6. Bb3 {[%clk 0:02:56]}  Bb7 {[%clk 0:02:53]} 7. c3 {[%clk 0:02:50]}  Nge7 {[%clk 0:02:48]} 8. d4 {[%clk 0:02:49]}  Ng6 {[%clk 0:02:48]} 9. Bd5 {[%clk 0:02:46]}  Be7 {[%clk 0:02:46]} 10. a4 {[%clk 0:02:35]}  Na5 {[%clk 0:02:40]} 11. Bxb7 {[%clk 0:02:25]}  Nxb7 {[%clk 0:02:41]} 12. Qb3 {[%clk 0:02:25]}  Na5 {[%clk 0:02:36]} 13. Qa2 {[%clk 0:02:21]}  Nc4 {[%clk 0:02:30]} 14. Nbd2 {[%clk 0:02:21]}  d5 {[%clk 0:02:26]} 15. exd5 {[%clk 0:02:08]}  Qxd5 {[%clk 0:02:27]} 16. axb5 {[%clk 0:02:07]}  Nb6 {[%clk 0:02:19]} 17. Qxd5 {[%clk 0:01:59]}  Nxd5 {[%clk 0:02:19]} 18. bxa6 {[%clk 0:01:59]}  O-O {[%clk 0:02:18]} 19. dxe5 {[%clk 0:01:51]}  fxe5 {[%clk 0:02:19]} 20. Ne4 {[%clk 0:01:47]}  Nb6 {[%clk 0:02:04]} 21. b3 {[%clk 0:01:37]}  c6 {[%clk 0:01:43]} 22. c4 {[%clk 0:01:34]}  Bc5 {[%clk 0:01:40]} 23. Nxc5 {[%clk 0:01:33]} 1-0


[Site "https://www.chess.com"]